[Event "Titled Tuesday Blitz April 25 Early 2023"]
[White "Avalos Parra, Joao"]
[Black "Mortazavi, Ali"]
[WhiteFideId "3402541"]
[BlackFideId "401323"]
[WhiteElo "2173"]
[BlackElo "2339"]
[Result "1-0"]
[Round "04"]
[TimeControl "180+2"]
[Date "2023.04.25"]
[WhiteClock "0:00:09"]
[BlackClock "0:00:03"]

1. d4 {[%clk 0:03:00]}  Nf6 {[%clk 0:02:59]} 2. c4 {[%clk 0:03:00]}  g6 {[%clk 0:03:00]} 3. Nc3 {[%clk 0:03:00]}  Bg7 {[%clk 0:03:00]} 4. Nf3 {[%clk 0:03:00]}  O-O {[%clk 0:03:01]} 5. Bg5 {[%clk 0:03:00]}  d6 {[%clk 0:03:02]} 6. e3 {[%clk 0:03:00]}  c5 {[%clk 0:03:03]} 7. d5 {[%clk 0:02:59]}  b5 {[%clk 0:03:02]} 8. cxb5 {[%clk 0:02:51]}  a6 {[%clk 0:03:02]} 9. Be2 {[%clk 0:02:48]}  axb5 {[%clk 0:02:57]} 10. Bxb5 {[%clk 0:02:48]}  Qa5 {[%clk 0:02:56]} 11. O-O {[%clk 0:02:43]}  h6 {[%clk 0:02:45]} 12. Bh4 {[%clk 0:02:41]}  g5 {[%clk 0:02:41]} 13. Bg3 {[%clk 0:02:41]}  Nh5 {[%clk 0:02:36]} 14. a4 {[%clk 0:02:27]}  Nxg3 {[%clk 0:02:35]} 15. hxg3 {[%clk 0:02:27]}  Bxc3 {[%clk 0:02:29]} 16. bxc3 {[%clk 0:02:27]}  Qxc3 {[%clk 0:02:30]} 17. Rc1 {[%clk 0:02:17]}  Qg7 {[%clk 0:02:28]} 18. e4 {[%clk 0:02:13]}  Bg4 {[%clk 0:02:05]} 19. Qd3 {[%clk 0:02:10]}  Nd7 {[%clk 0:02:02]} 20. Bc6 {[%clk 0:01:22]}  Ra7 {[%clk 0:01:59]} 21. Nd2 {[%clk 0:00:53]}  Ne5 {[%clk 0:01:55]} 22. Qb3 {[%clk 0:00:53]}  Nxc6 {[%clk 0:01:00]} 23. dxc6 {[%clk 0:00:54]}  Rc7 {[%clk 0:00:56]} 24. Nc4 {[%clk 0:00:23]}  Rxc6 {[%clk 0:00:53]} 25. Qb5 {[%clk 0:00:20]}  Rcc8 {[%clk 0:00:42]} 26. a5 {[%clk 0:00:20]}  Rb8 {[%clk 0:00:38]} 27. Qc6 {[%clk 0:00:20]}  Rfc8 {[%clk 0:00:34]} 28. Qd5 {[%clk 0:00:16]}  Be6 {[%clk 0:00:34]} 29. Qd3 {[%clk 0:00:16]}  Bxc4 {[%clk 0:00:26]} 30. Qxc4 {[%clk 0:00:15]}  Qb2 {[%clk 0:00:24]} 31. Rb1 {[%clk 0:00:12]}  Qxb1 {[%clk 0:00:20]} 32. Rxb1 {[%clk 0:00:13]}  Rxb1+ {[%clk 0:00:20]} 33. Kh2 {[%clk 0:00:13]}  Ra1 {[%clk 0:00:20]} 34. a6 {[%clk 0:00:13]}  Ra8 {[%clk 0:00:19]} 35. e5 {[%clk 0:00:14]}  dxe5 {[%clk 0:00:16]} 36. Qxc5 {[%clk 0:00:14]}  R1xa6 {[%clk 0:00:15]} 37. Qxe7 {[%clk 0:00:14]}  Re6 {[%clk 0:00:15]} 38. Qc5 {[%clk 0:00:14]}  Rae8 {[%clk 0:00:15]} 39. Qc2 {[%clk 0:00:14]}  Kg7 {[%clk 0:00:14]} 40. Qf5 {[%clk 0:00:14]}  Rf6 {[%clk 0:00:15]} 41. Qe4 {[%clk 0:00:14]}  Rxf2 {[%clk 0:00:14]} 42. Kh3 {[%clk 0:00:15]}  Rf6 {[%clk 0:00:11]} 43. Kh2 {[%clk 0:00:14]}  Rg6 {[%clk 0:00:10]} 44. Kh3 {[%clk 0:00:13]}  Rf6 {[%clk 0:00:10]} 45. Kh2 {[%clk 0:00:13]}  Rf1 {[%clk 0:00:08]} 46. Kh3 {[%clk 0:00:12]}  f5 {[%clk 0:00:08]} 47. Qb7+ {[%clk 0:00:12]}  Kg6 {[%clk 0:00:08]} 48. Qc6+ {[%clk 0:00:11]}  Kf7 {[%clk 0:00:08]} 49. Qc4+ {[%clk 0:00:11]}  Kg6 {[%clk 0:00:06]} 50. Qxf1 {[%clk 0:00:12]}  e4 {[%clk 0:00:06]} 51. Qa6+ {[%clk 0:00:12]}  Kh5 {[%clk 0:00:06]} 52. Qe2+ {[%clk 0:00:10]}  g4+ {[%clk 0:00:05]} 53. Kh2 {[%clk 0:00:10]}  e3 {[%clk 0:00:05]} 54. Kg1 {[%clk 0:00:08]}  Kg5 {[%clk 0:00:05]} 55. Kf1 {[%clk 0:00:08]}  f4 {[%clk 0:00:05]} 56. gxf4+ {[%clk 0:00:08]}  Kxf4 {[%clk 0:00:06]} 57. Qc4+ {[%clk 0:00:05]}  Kg3 {[%clk 0:00:06]} 58. Ke2 {[%clk 0:00:04]}  h5 {[%clk 0:00:07]} 59. Qc7+ {[%clk 0:00:04]}  Kh4 {[%clk 0:00:06]} 60. Qh2+ {[%clk 0:00:03]}  Kg5 {[%clk 0:00:05]} 61. g3 {[%clk 0:00:03]}  Re6 {[%clk 0:00:02]} 62. Qh4+ {[%clk 0:00:04]}  Kg6 {[%clk 0:00:03]} 63. Qd8 {[%clk 0:00:04]}  Rf6 {[%clk 0:00:02]} 64. Qg8+ {[%clk 0:00:05]}  Kh6 {[%clk 0:00:01]} 65. Qh8+ {[%clk 0:00:05]}  Kg5 {[%clk 0:00:01]} 66. Qg7+ {[%clk 0:00:05]}  Rg6 {[%clk 0:00:02]} 67. Qe5+ {[%clk 0:00:06]}  Kh6 {[%clk 0:00:02]} 68. Qxe3+ {[%clk 0:00:05]}  Kg7 {[%clk 0:00:01]} 69. Qf4 {[%clk 0:00:06]}  Rf6 {[%clk 0:00:01]} 70. Qe5 {[%clk 0:00:06]}  Kg6 {[%clk 0:00:01]} 71. Kd3 {[%clk 0:00:06]}  Rf5 {[%clk 0:00:01]} 72. Qe6+ {[%clk 0:00:06]}  Rf6 {[%clk 0:00:02]} 73. Qe4+ {[%clk 0:00:07]}  Rf5 {[%clk 0:00:02]} 74. Qe8+ {[%clk 0:00:07]}  Kg5 {[%clk 0:00:03]} 75. Qg8+ {[%clk 0:00:08]}  Kf6 {[%clk 0:00:03]} 76. Qh8+ {[%clk 0:00:08]}  Kg5 {[%clk 0:00:03]} 77. Ke4 {[%clk 0:00:08]}  Rf6 {[%clk 0:00:03]} 78. Qg7+ {[%clk 0:00:09]}  Rg6 {[%clk 0:00:03]} 79. Qe7+ {[%clk 0:00:09]}  Kh6 {[%clk 0:00:03]} 80. Qf8+ {[%clk 0:00:09]}  Kg5 {[%clk 0:00:03]} 81. Qf4# {[%clk 0:00:09]} 1-0


[Site "https://www.chess.com"]

[Event "Titled Tuesday Blitz April 25 Early 2023"]
[White "littlepillow2010"]
[Black "Arpita, Mukherjee"]
[BlackFideId "5056403"]
[WhiteElo "2367"]
[BlackElo "2129"]
[Result "0-1"]
[Round "04"]
[TimeControl "180+2"]
[Date "2023.04.25"]
[WhiteClock "0:00:03"]
[BlackClock "0:00:16"]

1. e4 {[%clk 0:03:00]}  c5 {[%clk 0:02:57]} 2. Nf3 {[%clk 0:03:00]}  d6 {[%clk 0:02:56]} 3. d4 {[%clk 0:03:01]}  cxd4 {[%clk 0:02:57]} 4. Nxd4 {[%clk 0:03:02]}  Nf6 {[%clk 0:02:56]} 5. Nc3 {[%clk 0:03:02]}  a6 {[%clk 0:02:56]} 6. h3 {[%clk 0:03:01]}  e5 {[%clk 0:02:53]} 7. Nb3 {[%clk 0:02:59]}  Be6 {[%clk 0:02:52]} 8. f4 {[%clk 0:02:59]}  exf4 {[%clk 0:02:49]} 9. Bxf4 {[%clk 0:02:59]}  Be7 {[%clk 0:02:49]} 10. Qe2 {[%clk 0:02:59]}  O-O {[%clk 0:02:34]} 11. O-O-O {[%clk 0:03:00]}  Qb6 {[%clk 0:02:32]} 12. g4 {[%clk 0:02:57]}  a5 {[%clk 0:02:26]} 13. g5 {[%clk 0:02:53]}  Nfd7 {[%clk 0:02:24]} 14. Nd4 {[%clk 0:02:50]}  Nc6 {[%clk 0:01:54]} 15. Nxe6 {[%clk 0:02:29]}  fxe6 {[%clk 0:01:55]} 16. Bxd6 {[%clk 0:02:28]}  Bxd6 {[%clk 0:01:48]} 17. Rxd6 {[%clk 0:02:29]}  Nd4 {[%clk 0:01:48]} 18. Rxb6 {[%clk 0:01:51]}  Nxe2+ {[%clk 0:01:48]} 19. Bxe2 {[%clk 0:01:52]}  Nxb6 {[%clk 0:01:48]} 20. Bg4 {[%clk 0:01:50]}  e5 {[%clk 0:01:47]} 21. Be6+ {[%clk 0:01:48]}  Kh8 {[%clk 0:01:47]} 22. Rd1 {[%clk 0:01:44]}  Rad8 {[%clk 0:01:44]} 23. Nd5 {[%clk 0:01:29]}  Rd6 {[%clk 0:01:43]} 24. Nxb6 {[%clk 0:01:08]}  Rxb6 {[%clk 0:01:33]} 25. Bd5 {[%clk 0:01:07]}  h6 {[%clk 0:01:26]} 26. h4 {[%clk 0:00:56]}  Kh7 {[%clk 0:01:21]} 27. Rg1 {[%clk 0:00:52]}  h5 {[%clk 0:01:11]} 28. a4 {[%clk 0:00:31]}  Rf4 {[%clk 0:01:09]} 29. Rh1 {[%clk 0:00:31]}  Rf2 {[%clk 0:00:53]} 30. b3 {[%clk 0:00:20]}  Rd6 {[%clk 0:00:51]} 31. Rh3 {[%clk 0:00:16]}  b6 {[%clk 0:00:50]} 32. Rc3 {[%clk 0:00:04]}  Rh2 {[%clk 0:00:48]} 33. Rc7 {[%clk 0:00:02]}  Rxh4 {[%clk 0:00:46]} 34. Bf7 {[%clk 0:00:03]}  Rh1+ {[%clk 0:00:39]} 35. Kb2 {[%clk 0:00:02]}  h4 {[%clk 0:00:40]} 36. Rc8 {[%clk 0:00:02]}  h3 {[%clk 0:00:26]} 37. Rc3 {[%clk 0:00:02]}  Rd2 {[%clk 0:00:20]} 38. Be6 {[%clk 0:00:01]}  h2 {[%clk 0:00:17]} 39. Bf5+ {[%clk 0:00:02]}  g6 {[%clk 0:00:17]} 40. Rc7+ {[%clk 0:00:01]}  Kg8 {[%clk 0:00:16]} 41. Rc8+ {[%clk 0:00:02]}  Kf7 {[%clk 0:00:16]} 42. Rc7+ {[%clk 0:00:02]}  Ke8 {[%clk 0:00:16]} 43. Rc8+ {[%clk 0:00:02]}  Rd8 {[%clk 0:00:16]} 44. Bxg6+ {[%clk 0:00:01]}  Ke7 {[%clk 0:00:17]} 45. Rc7+ {[%clk 0:00:02]}  Rd7 {[%clk 0:00:17]} 46. Rxd7+ {[%clk 0:00:01]}  Kxd7 {[%clk 0:00:17]} 47. Bf5+ {[%clk 0:00:02]}  Ke7 {[%clk 0:00:17]} 48. g6 {[%clk 0:00:03]}  Rg1 {[%clk 0:00:16]} 0-1


[Site "https://www.chess.com"]

[Event "Titled Tuesday Blitz April 25 Early 2023"]
[White "Rodchenkov, Sergey D."]
[Black "Luong Phuong Hanh"]
[WhiteFideId "4168712"]
[BlackFideId "12401013"]
[WhiteElo "2277"]
[BlackElo "2081"]
[Result "1-0"]
[Round "04"]
[TimeControl "180+2"]
[Date "2023.04.25"]
[WhiteClock "0:00:04"]
[BlackClock "0:00:04"]

1. e4 {[%clk 0:03:00]}  c5 {[%clk 0:02:58]} 2. Nf3 {[%clk 0:03:01]}  e6 {[%clk 0:02:42]} 3. d4 {[%clk 0:03:01]}  cxd4 {[%clk 0:02:43]} 4. Nxd4 {[%clk 0:03:02]}  a6 {[%clk 0:02:43]} 5. Nc3 {[%clk 0:03:02]}  Qc7 {[%clk 0:02:43]} 6. Bd3 {[%clk 0:03:02]}  Nf6 {[%clk 0:02:42]} 7. Qe2 {[%clk 0:03:01]}  d6 {[%clk 0:02:37]} 8. g4 {[%clk 0:02:58]}  b5 {[%clk 0:02:36]} 9. g5 {[%clk 0:02:53]}  Nfd7 {[%clk 0:02:35]} 10. a3 {[%clk 0:02:54]}  Bb7 {[%clk 0:02:33]} 11. Bd2 {[%clk 0:02:53]}  Nc6 {[%clk 0:02:31]} 12. Nxc6 {[%clk 0:02:50]}  Qxc6 {[%clk 0:02:28]} 13. f4 {[%clk 0:02:45]}  Be7 {[%clk 0:02:22]} 14. h4 {[%clk 0:02:41]}  Nc5 {[%clk 0:02:21]} 15. b4 {[%clk 0:02:31]}  Nxd3+ {[%clk 0:02:21]} 16. cxd3 {[%clk 0:02:32]}  O-O {[%clk 0:02:20]} 17. Rc1 {[%clk 0:02:27]}  Qd7 {[%clk 0:02:18]} 18. h5 {[%clk 0:02:23]}  d5 {[%clk 0:02:17]} 19. e5 {[%clk 0:02:14]}  a5 {[%clk 0:02:05]} 20. O-O {[%clk 0:01:50]}  axb4 {[%clk 0:02:03]} 21. axb4 {[%clk 0:01:51]}  Bxb4 {[%clk 0:02:02]} 22. d4 {[%clk 0:01:39]}  Bxc3 {[%clk 0:01:57]} 23. Bxc3 {[%clk 0:01:39]}  b4 {[%clk 0:01:57]} 24. Bxb4 {[%clk 0:01:38]}  Ba6 {[%clk 0:01:57]} 25. Qd2 {[%clk 0:01:31]}  Bxf1 {[%clk 0:01:40]} 26. Bxf8 {[%clk 0:01:31]}  Bc4 {[%clk 0:01:40]} 27. Bd6 {[%clk 0:01:12]}  Ra2 {[%clk 0:01:36]} 28. Qb4 {[%clk 0:01:09]}  Qa7 {[%clk 0:01:23]} 29. Bc5 {[%clk 0:01:01]}  Qa8 {[%clk 0:01:18]} 30. Rb1 {[%clk 0:00:36]}  Ra1 {[%clk 0:01:18]} 31. Rxa1 {[%clk 0:00:20]}  Qxa1+ {[%clk 0:01:17]} 32. Kh2 {[%clk 0:00:18]}  Qa2+ {[%clk 0:01:14]} 33. Kh1 {[%clk 0:00:15]}  Qa8 {[%clk 0:01:11]} 34. h6 {[%clk 0:00:12]}  Bd3 {[%clk 0:01:03]} 35. Qb2 {[%clk 0:00:07]}  Be4+ {[%clk 0:01:02]} 36. Kh2 {[%clk 0:00:07]}  gxh6 {[%clk 0:00:59]} 37. gxh6 {[%clk 0:00:08]}  Qd8 {[%clk 0:00:59]} 38. Qf2 {[%clk 0:00:07]}  Bg6 {[%clk 0:00:47]} 39. f5 {[%clk 0:00:05]}  Bxf5 {[%clk 0:00:41]} 40. Qg3+ {[%clk 0:00:05]}  Bg6 {[%clk 0:00:41]} 41. Qf4 {[%clk 0:00:06]}  Qa5 {[%clk 0:00:26]} 42. Qg5 {[%clk 0:00:05]}  Qa2+ {[%clk 0:00:25]} 43. Kg3 {[%clk 0:00:03]}  Qb3+ {[%clk 0:00:10]} 44. Kh4 {[%clk 0:00:04]}  Qb8 {[%clk 0:00:04]} 45. Qf6 {[%clk 0:00:04]} 1-0


[Site "https://www.chess.com"]

[Event "Titled Tuesday Blitz April 25 Early 2023"]
[White "Vestby-Ellingsen, Mads"]
[Black "Lopez Del Alamo, Antonio"]
[WhiteFideId "1520857"]
[BlackFideId "2227339"]
[WhiteElo "2246"]
[BlackElo "2175"]
[Result "1-0"]
[Round "04"]
[TimeControl "180+2"]
[Date "2023.04.25"]
[WhiteClock "0:00:32"]
[BlackClock "0:00:13"]

1. d4 {[%clk 0:03:00]}  Nf6 {[%clk 0:02:59]} 2. c4 {[%clk 0:03:00]}  g6 {[%clk 0:02:58]} 3. g4 {[%clk 0:02:58]}  c5 {[%clk 0:02:57]} 4. g5 {[%clk 0:02:58]}  Ne4 {[%clk 0:02:49]} 5. Qd3 {[%clk 0:02:54]}  d5 {[%clk 0:02:46]} 6. cxd5 {[%clk 0:02:53]}  Bf5 {[%clk 0:02:46]} 7. dxc5 {[%clk 0:02:42]}  Nd7 {[%clk 0:02:44]} 8. Bg2 {[%clk 0:02:24]}  Ndxc5 {[%clk 0:02:35]} 9. Qd4 {[%clk 0:02:16]}  Rg8 {[%clk 0:02:32]} 10. f3 {[%clk 0:02:12]}  Bg7 {[%clk 0:01:55]} 11. Qc4 {[%clk 0:02:02]}  Rc8 {[%clk 0:01:30]} 12. fxe4 {[%clk 0:01:53]}  Nd7 {[%clk 0:01:21]} 13. Qb4 {[%clk 0:01:44]}  a5 {[%clk 0:01:11]} 14. Qd2 {[%clk 0:01:42]}  Bg4 {[%clk 0:01:04]} 15. Nc3 {[%clk 0:01:41]}  Ne5 {[%clk 0:00:59]} 16. Nf3 {[%clk 0:01:37]}  Nc4 {[%clk 0:00:58]} 17. Qf4 {[%clk 0:01:38]}  Qd7 {[%clk 0:00:37]} 18. O-O {[%clk 0:01:28]}  b5 {[%clk 0:00:35]} 19. Nd1 {[%clk 0:01:01]}  Rh8 {[%clk 0:00:35]} 20. Ne3 {[%clk 0:00:59]}  Bxf3 {[%clk 0:00:32]} 21. Nxc4 {[%clk 0:00:53]}  Bxg2 {[%clk 0:00:31]} 22. Qxf7+ {[%clk 0:00:49]}  Kd8 {[%clk 0:00:30]} 23. Qxg7 {[%clk 0:00:45]}  Bxf1 {[%clk 0:00:26]} 24. Qxh8+ {[%clk 0:00:36]}  Kc7 {[%clk 0:00:25]} 25. Qe5+ {[%clk 0:00:36]}  Kb7 {[%clk 0:00:24]} 26. Nxa5+ {[%clk 0:00:32]}  Ka6 {[%clk 0:00:23]} 27. Qe6+ {[%clk 0:00:32]}  Qxe6 {[%clk 0:00:22]} 28. dxe6 {[%clk 0:00:33]}  Bxe2 {[%clk 0:00:17]} 29. Nb3 {[%clk 0:00:33]}  Rc2 {[%clk 0:00:13]} 30. Nd4 {[%clk 0:00:32]} 1-0


[Site "https://www.chess.com"]

[Event "Titled Tuesday Blitz April 25 Early 2023"]
[White "Stalri"]
[Black "Dushyant Sharma"]
[BlackFideId "25065130"]
[WhiteElo "2337"]
[BlackElo "2198"]
[Result "0-1"]
[Round "04"]
[TimeControl "180+2"]
[Date "2023.04.25"]
[WhiteClock "0:01:28"]
[BlackClock "0:00:58"]

1. d4 {[%clk 0:03:00]}  d5 {[%clk 0:02:58]} 2. c4 {[%clk 0:03:00]}  e6 {[%clk 0:02:58]} 3. Nc3 {[%clk 0:03:00]}  c6 {[%clk 0:02:58]} 4. e3 {[%clk 0:02:59]}  f5 {[%clk 0:02:57]} 5. Nf3 {[%clk 0:02:58]}  Bd6 {[%clk 0:02:58]} 6. Bd3 {[%clk 0:02:59]}  Nf6 {[%clk 0:02:58]} 7. O-O {[%clk 0:02:59]}  O-O {[%clk 0:02:59]} 8. b3 {[%clk 0:02:59]}  Ne4 {[%clk 0:02:58]} 9. Qc2 {[%clk 0:02:58]}  Qe7 {[%clk 0:02:59]} 10. Nd2 {[%clk 0:02:55]}  Nd7 {[%clk 0:02:59]} 11. f3 {[%clk 0:02:55]}  Qh4 {[%clk 0:02:58]} 12. f4 {[%clk 0:02:45]}  b6 {[%clk 0:02:56]} 13. Nf3 {[%clk 0:02:45]}  Qh5 {[%clk 0:02:55]} 14. Ne5 {[%clk 0:02:45]}  Nxe5 {[%clk 0:02:55]} 15. dxe5 {[%clk 0:02:42]}  Bc5 {[%clk 0:02:54]} 16. Bxe4 {[%clk 0:02:41]}  fxe4 {[%clk 0:02:53]} 17. Ne2 {[%clk 0:02:41]}  Ba6 {[%clk 0:02:47]} 18. Nd4 {[%clk 0:02:39]}  Bxd4 {[%clk 0:02:43]} 19. exd4 {[%clk 0:02:40]}  c5 {[%clk 0:02:40]} 20. Be3 {[%clk 0:02:39]}  Rad8 {[%clk 0:02:39]} 21. Rfd1 {[%clk 0:02:37]}  dxc4 {[%clk 0:02:36]} 22. Qxe4 {[%clk 0:02:21]}  Rd5 {[%clk 0:02:21]} 23. bxc4 {[%clk 0:02:18]}  Bxc4 {[%clk 0:02:21]} 24. Rdc1 {[%clk 0:02:16]}  cxd4 {[%clk 0:02:03]} 25. Bxd4 {[%clk 0:02:06]}  b5 {[%clk 0:02:01]} 26. a4 {[%clk 0:02:06]}  Rfd8 {[%clk 0:01:41]} 27. Bxa7 {[%clk 0:02:04]}  Rd1+ {[%clk 0:01:29]} 28. Rxd1 {[%clk 0:02:04]}  Rxd1+ {[%clk 0:01:29]} 29. Rxd1 {[%clk 0:02:05]}  Qxd1+ {[%clk 0:01:30]} 30. Kf2 {[%clk 0:02:05]}  Qd2+ {[%clk 0:01:13]} 31. Kg3 {[%clk 0:02:00]}  Bd5 {[%clk 0:01:13]} 32. Qe3 {[%clk 0:01:35]}  Qxg2+ {[%clk 0:01:13]} 33. Kh4 {[%clk 0:01:36]}  Qxh2+ {[%clk 0:01:13]} 34. Kg4 {[%clk 0:01:30]}  h5+ {[%clk 0:00:58]} 35. Kg5 {[%clk 0:01:29]}  Qg2+ {[%clk 0:00:58]} 36. Kxh5 {[%clk 0:01:28]}  Bf3+ {[%clk 0:00:58]} 0-1


[Site "https://www.chess.com"]

[Event "Titled Tuesday Blitz April 25 Early 2023"]
[White "Girsh, Daniel"]
[Black "Rychkov, Roman"]
[WhiteFideId "30949190"]
[BlackFideId "30985595"]
[WhiteElo "2075"]
[BlackElo "1946"]
[Result "0-1"]
[Round "04"]
[TimeControl "180+2"]
[Date "2023.04.25"]
[WhiteClock "0:00:06"]
[BlackClock "0:00:08"]

1. Nf3 {[%clk 0:03:00]}  Nf6 {[%clk 0:02:59]} 2. g3 {[%clk 0:03:01]}  b6 {[%clk 0:02:56]} 3. Bg2 {[%clk 0:03:01]}  Bb7 {[%clk 0:02:57]} 4. O-O {[%clk 0:03:02]}  e6 {[%clk 0:02:58]} 5. c4 {[%clk 0:03:02]}  Be7 {[%clk 0:02:59]} 6. d4 {[%clk 0:03:02]}  O-O {[%clk 0:03:00]} 7. d5 {[%clk 0:03:02]}  exd5 {[%clk 0:03:00]} 8. Nh4 {[%clk 0:02:55]}  c6 {[%clk 0:02:37]} 9. cxd5 {[%clk 0:02:47]}  Nxd5 {[%clk 0:02:31]} 10. Nf5 {[%clk 0:02:47]}  Bf6 {[%clk 0:02:15]} 11. e4 {[%clk 0:02:46]}  Ne7 {[%clk 0:02:13]} 12. Nd6 {[%clk 0:02:44]}  Ba6 {[%clk 0:02:08]} 13. Re1 {[%clk 0:02:44]}  Ng6 {[%clk 0:01:48]} 14. Nc3 {[%clk 0:02:41]}  Bxc3 {[%clk 0:01:32]} 15. bxc3 {[%clk 0:02:41]}  c5 {[%clk 0:01:32]} 16. f4 {[%clk 0:02:36]}  Nc6 {[%clk 0:01:31]} 17. Qa4 {[%clk 0:02:25]}  Qc7 {[%clk 0:01:23]} 18. e5 {[%clk 0:02:24]}  Bb7 {[%clk 0:01:17]} 19. Be3 {[%clk 0:02:12]}  Nd8 {[%clk 0:00:59]} 20. Nxb7 {[%clk 0:02:02]}  Nxb7 {[%clk 0:00:59]} 21. Rad1 {[%clk 0:02:02]}  Rfd8 {[%clk 0:00:49]} 22. Qa6 {[%clk 0:01:59]}  Rab8 {[%clk 0:00:23]} 23. Qxa7 {[%clk 0:01:53]}  Ne7 {[%clk 0:00:23]} 24. Qa4 {[%clk 0:01:28]}  d5 {[%clk 0:00:18]} 25. exd6 {[%clk 0:01:15]}  Nxd6 {[%clk 0:00:19]} 26. Bf2 {[%clk 0:01:12]}  Ng6 {[%clk 0:00:14]} 27. Qc2 {[%clk 0:01:04]}  c4 {[%clk 0:00:13]} 28. f5 {[%clk 0:01:03]}  Nf8 {[%clk 0:00:13]} 29. f6 {[%clk 0:01:03]}  gxf6 {[%clk 0:00:09]} 30. Bd4 {[%clk 0:01:02]}  Ne8 {[%clk 0:00:05]} 31. Qf2 {[%clk 0:01:00]}  Rd6 {[%clk 0:00:03]} 32. Rb1 {[%clk 0:00:50]}  Ng6 {[%clk 0:00:03]} 33. Rb5 {[%clk 0:00:45]}  Kg7 {[%clk 0:00:03]} 34. h4 {[%clk 0:00:43]}  h5 {[%clk 0:00:03]} 35. Rxh5 {[%clk 0:00:42]}  Rbd8 {[%clk 0:00:02]} 36. Qd2 {[%clk 0:00:36]}  Rxd4 {[%clk 0:00:02]} 37. Qh6+ {[%clk 0:00:36]}  Kg8 {[%clk 0:00:02]} 38. cxd4 {[%clk 0:00:31]}  c3 {[%clk 0:00:02]} 39. Kh2 {[%clk 0:00:18]}  c2 {[%clk 0:00:02]} 40. Be4 {[%clk 0:00:16]}  Ng7 {[%clk 0:00:03]} 41. Bxg6 {[%clk 0:00:13]}  fxg6 {[%clk 0:00:03]} 42. Qxg6 {[%clk 0:00:10]}  c1=Q {[%clk 0:00:03]} 43. Qh7+ {[%clk 0:00:09]}  Kf7 {[%clk 0:00:04]} 44. Rxc1 {[%clk 0:00:08]}  Qxc1 {[%clk 0:00:04]} 45. Rb5 {[%clk 0:00:05]}  Qd2+ {[%clk 0:00:05]} 46. Kh3 {[%clk 0:00:05]}  Qxd4 {[%clk 0:00:05]} 47. Qb1 {[%clk 0:00:04]}  Qd7+ {[%clk 0:00:06]} 48. Kh2 {[%clk 0:00:03]}  Qd2+ {[%clk 0:00:06]} 49. Kh3 {[%clk 0:00:03]}  Qd7+ {[%clk 0:00:07]} 50. Kh2 {[%clk 0:00:04]}  Rb8 {[%clk 0:00:06]} 51. Rb3 {[%clk 0:00:04]}  Ne6 {[%clk 0:00:07]} 52. Rc3 {[%clk 0:00:04]}  Qe7 {[%clk 0:00:07]} 53. Re3 {[%clk 0:00:04]}  f5 {[%clk 0:00:07]} 54. Qb3 {[%clk 0:00:05]}  Qf6 {[%clk 0:00:08]} 55. Rf3 {[%clk 0:00:05]}  b5 {[%clk 0:00:08]} 56. Qd5 {[%clk 0:00:06]}  Rd8 {[%clk 0:00:08]} 57. Qxb5 {[%clk 0:00:06]}  Rd2+ {[%clk 0:00:08]} 58. Kh3 {[%clk 0:00:06]}  Ng5+ {[%clk 0:00:08]} 59. hxg5 {[%clk 0:00:06]}  Qh8# {[%clk 0:00:08]} 0-1


[Site "https://www.chess.com"]

[Event "Titled Tuesday Blitz April 25 Early 2023"]
[White "Itkis, Boris"]
[Black "Escanor89"]
[WhiteFideId "1209167"]
[WhiteElo "2216"]
[BlackElo "2500"]
[Result "0-1"]
[Round "04"]
[TimeControl "180+2"]
[Date "2023.04.25"]
[WhiteClock "0:00:11"]
[BlackClock "0:00:34"]

1. c4 {[%clk 0:03:00]}  Nf6 {[%clk 0:02:59]} 2. Nf3 {[%clk 0:03:00]}  e6 {[%clk 0:02:59]} 3. g3 {[%clk 0:03:00]}  d5 {[%clk 0:02:59]} 4. Bg2 {[%clk 0:03:01]}  Be7 {[%clk 0:02:59]} 5. O-O {[%clk 0:03:00]}  O-O {[%clk 0:03:00]} 6. b3 {[%clk 0:03:01]}  a5 {[%clk 0:02:59]} 7. Bb2 {[%clk 0:02:59]}  c6 {[%clk 0:02:53]} 8. e3 {[%clk 0:02:59]}  Nbd7 {[%clk 0:02:48]} 9. Qe2 {[%clk 0:02:59]}  a4 {[%clk 0:02:47]} 10. Ne1 {[%clk 0:02:57]}  axb3 {[%clk 0:02:37]} 11. axb3 {[%clk 0:02:57]}  Rxa1 {[%clk 0:02:38]} 12. Bxa1 {[%clk 0:02:58]}  Qa5 {[%clk 0:02:36]} 13. Bc3 {[%clk 0:02:29]}  Qa2 {[%clk 0:02:12]} 14. Qd1 {[%clk 0:02:14]}  Nc5 {[%clk 0:02:08]} 15. b4 {[%clk 0:02:06]}  Na4 {[%clk 0:01:52]} 16. Bxf6 {[%clk 0:02:02]}  Bxf6 {[%clk 0:01:52]} 17. c5 {[%clk 0:02:03]}  e5 {[%clk 0:01:32]} 18. f4 {[%clk 0:01:50]}  e4 {[%clk 0:01:29]} 19. d3 {[%clk 0:01:18]}  exd3 {[%clk 0:01:24]} 20. Qxd3 {[%clk 0:01:09]}  Qb2 {[%clk 0:01:11]} 21. Nc2 {[%clk 0:01:01]}  g6 {[%clk 0:01:04]} 22. Nd2 {[%clk 0:00:34]}  Bf5 {[%clk 0:01:00]} 23. e4 {[%clk 0:00:33]}  dxe4 {[%clk 0:00:59]} 24. Bxe4 {[%clk 0:00:34]}  Rd8 {[%clk 0:00:45]} 25. Nc4 {[%clk 0:00:18]}  Rxd3 {[%clk 0:00:43]} 26. Nxb2 {[%clk 0:00:17]}  Bxe4 {[%clk 0:00:43]} 27. Nxa4 {[%clk 0:00:16]}  Rd2 {[%clk 0:00:36]} 28. Ne3 {[%clk 0:00:13]}  Bd4 {[%clk 0:00:36]} 29. Re1 {[%clk 0:00:13]}  Rg2+ {[%clk 0:00:34]} 30. Kf1 {[%clk 0:00:14]}  Rxh2 {[%clk 0:00:33]} 31. Nb6 {[%clk 0:00:10]}  Rh1+ {[%clk 0:00:33]} 32. Ke2 {[%clk 0:00:10]}  Rxe1+ {[%clk 0:00:33]} 33. Kxe1 {[%clk 0:00:11]}  Bxe3 {[%clk 0:00:34]} 0-1


[Site "https://www.chess.com"]

[Event "Titled Tuesday Blitz April 25 Early 2023"]
[White "Allahverdiyeva, Ayan"]
[Black "Devaev, Alexander"]
[WhiteFideId "13412590"]
[BlackFideId "4169395"]
[WhiteElo "1980"]
[BlackElo "2204"]
[Result "0-1"]
[Round "04"]
[TimeControl "180+2"]
[Date "2023.04.25"]
[WhiteClock "0:00:05"]
[BlackClock "0:00:18"]

1. e4 {[%clk 0:02:58]}  c6 {[%clk 0:03:00]} 2. d4 {[%clk 0:02:58]}  d5 {[%clk 0:03:01]} 3. e5 {[%clk 0:02:58]}  Bf5 {[%clk 0:03:00]} 4. h4 {[%clk 0:02:58]}  Qb6 {[%clk 0:03:00]} 5. g4 {[%clk 0:02:38]}  Bd7 {[%clk 0:02:58]} 6. Nc3 {[%clk 0:02:35]}  e6 {[%clk 0:02:58]} 7. Na4 {[%clk 0:02:34]}  Qc7 {[%clk 0:02:58]} 8. Be3 {[%clk 0:02:32]}  b6 {[%clk 0:02:55]} 9. f4 {[%clk 0:02:24]}  h5 {[%clk 0:02:52]} 10. gxh5 {[%clk 0:02:17]}  Nh6 {[%clk 0:02:51]} 11. Bh3 {[%clk 0:02:17]}  c5 {[%clk 0:02:47]} 12. c3 {[%clk 0:02:11]}  Nc6 {[%clk 0:02:06]} 13. Nf3 {[%clk 0:01:47]}  c4 {[%clk 0:01:51]} 14. b3 {[%clk 0:01:34]}  Ne7 {[%clk 0:01:38]} 15. Qd2 {[%clk 0:01:10]}  Nef5 {[%clk 0:01:35]} 16. Bf2 {[%clk 0:01:10]}  Be7 {[%clk 0:01:33]} 17. Rg1 {[%clk 0:00:46]}  Rc8 {[%clk 0:01:28]} 18. Bf1 {[%clk 0:00:33]}  O-O {[%clk 0:00:54]} 19. Rc1 {[%clk 0:00:21]}  Qd8 {[%clk 0:00:30]} 20. Nb2 {[%clk 0:00:18]}  b5 {[%clk 0:00:27]} 21. Ng5 {[%clk 0:00:12]}  a5 {[%clk 0:00:26]} 22. bxc4 {[%clk 0:00:10]}  bxc4 {[%clk 0:00:23]} 23. Bh3 {[%clk 0:00:09]}  Rb8 {[%clk 0:00:20]} 24. Ke2 {[%clk 0:00:05]}  Ba3 {[%clk 0:00:18]} 25. Rb1 {[%clk 0:00:05]}  Qb6 {[%clk 0:00:18]} 0-1


[Site "https://www.chess.com"]